Cogmind - Beta 15 @@@ ROGUE MODE // 2025.08.03 @ 16:15:13 Player: aoab Result: Self-destructed Performance ------------- Evolutions (1) 500 Regions Visited (2) 400 Robots Destroyed (10) 50 Value Destroyed (193) 193 Prototype IDs (1) 20 Alien Tech Used (0) 0 Bonus (0) 0 TOTAL SCORE: 1163 Bonus ------- None Cogmind --------- Core Integrity 304/400 Matter 55/300 Energy 98/100 System Corruption 0% Temperature Warm (153) Movement Rolling (175) Ox5 Location -9/Materials Parts ------- > --- POWER (2) -------- (None) > --- PROPULSION (3) --- Compact Wheel > --- UTILITY (2) ------ Huge Storage Unit Terrain Scan Processor > --- WEAPON (2) ------- Advanced Beam Cannon > --- INVENTORY (25) --- Aluminum Leg Small Storage Unit Large Storage Unit Huge Storage Unit Small Battery (100) Small Battery (100) Weapon Shielding Shield Generator Shield Generator EM Shotgun Light Assault Rifle Light Assault Rifle Light Assault Rifle Light Cannon Light Cannon Grenade Launcher Grenade Launcher Peak State ------------ > --- POWER ------------ Ion Engine > --- PROPULSION ------- Wheel Compact Wheel Compact Wheel > --- UTILITY ---------- Huge Storage Unit Terrain Scan Processor > --- WEAPON ----------- Advanced Beam Cannon Autogun > --- INVENTORY -------- Aluminum Leg Small Storage Unit Large Storage Unit Huge Storage Unit Small Battery Small Battery Weapon Shielding Shield Generator Shield Generator EM Shotgun Light Assault Rifle Light Assault Rifle Light Assault Rifle Light Cannon Light Cannon Grenade Launcher Grenade Launcher [Rating: 14] Favorites ----------- Power Ion Engine Engine Ion Engine Propulsion Compact Wheel Leg Aluminum Leg Wheel Compact Wheel Utility Huge Storage Unit Storage Huge Storage Unit Processor Terrain Scan Processor Weapon Light Assault Rifle Energy Cannon Advanced Beam Cannon Ballistic Gun Light Assault Rifle Launcher Grenade Launcher Build | -11 -10 -9 ------- Run | Yrd Mat Mat Slots Evolved 2 | . . 2 Power 1 | . . 1 Propulsion 1 | . . 1 Utility . | . . . Weapon . | . . . Parts Attached 18 | 7 7 4 Power 3 | 2 1 . Engine 3 | 2 1 . Core . | . . . Reactor . | . . . Propulsion 5 | 2 2 1 Treads . | . . . Leg 2 | 2 . . Wheel 3 | . 2 1 Hover . | . . . Flight . | . . . Utility 4 | 1 2 1 Device . | . . . Storage 3 | 1 2 . Processor 1 | . . 1 Hackware . | . . . Protection . | . . . Artifact . | . . . Weapon 6 | 2 2 2 Energy Gun . | . . . Energy Cannon 1 | . . 1 Ballistic Gun 3 | 2 . 1 Ballistic Cannon . | . . . Launcher 2 | . 2 . Special Weapon . | . . . Impact Weapon . | . . . Slashing Weapon . | . . . Piercing Weapon . | . . . Special Melee Weapon . | . . . Unidentified Prototypes 1 | . . 1 Parts Lost 4 | . . 4 Power 1 | . . 1 Propulsion 2 | . . 2 Utility . | . . . Weapon 1 | . . 1 Highest Loss Streak 4 | . . 4 To Critical Strikes . | . . . Average Backups 10 | 3 9 12 Power . | . 1 . Propulsion 1 | 2 2 1 Utility 3 | . 2 5 Weapon 3 | . 3 6 Tool/Special . | . . . Unused Backups 15 | . 5 10 Power 3 | . 3 . Propulsion 2 | . 2 . Utility 6 | . . 6 Weapon 4 | . . 4 Tool/Special . | . . . Average Slot Usage (%) 89 | . 96 81 Engine 12 | . 14 10 Leg 8 | . 14 . Wheel 19 | . 14 27 Storage 20 | . 24 16 Processor 2 | . . 5 Energy Cannon 2 | . . 6 Ballistic Gun 15 | . 18 11 Launcher 7 | . 9 5 Peak Build Rating 14 | 6 8 14 Average Rating 8 | 4 7 10 On Entrance 4 | . 6 8 Naked Turns . | . . . Heaviest Build 92 | 12 90 92 Greatest Support 42 | 20 32 42 Greatest Overweight (x) 4 | 1 4 2 Average Overweight (x) 1 | . 1 2 Largest Inventory Capacity 25 | 8 25 25 Average Capacity 19 | 7 17 25 Most Carried 17 | 5 16 17 Average Carried 10 | 4 9 12 Final Capacity 25 | 8 25 25 Final Carried 17 | 5 10 17 Class Distribution -------------------- 100% | Mutant Dominant Class ---------------- Mutant | -10/Materials Mutant | -9/Materials Resources | -11 -10 -9 ----------- Run | Yrd Mat Mat Matter Collected 259 | 180 . 79 Remotely . | . . . Salvage Created 217 | . 76 141 Parts 15 | . 8 7 Haulers Intercepted 1 | . . 1 Recyclers Shooed . | . . . Parts Field Recycled . | . . . Retrieved Matter . | . . . Parts Self-Destructed . | . . . Prevented . | . . . Kills | -11 -10 -9 ------- Run | Yrd Mat Mat Combat Hostiles Destroyed 6 | . 4 2 Guns 2 | . 1 1 Cannons 1 | . . 1 AOE 3 | . 3 . Classes Destroyed 6 | . 4 2 Worker 2 | . 2 . Hauler 1 | . . 1 Watcher 1 | . 1 . Swarmer 3 | . 3 . Grunt 2 | . 1 1 Sentry 1 | . . 1 Best Kill Streak 6 | . 6 1 Combat Bots Only 4 | . 4 1 Max Kills in Single Turn 3 | . 3 1 Gunslinging . | . . . Exploded 2 | . 2 . Melee . | . . . Uniques/NPCs Destroyed . | . . . Combat | -11 -10 -9 -------- Run | Yrd Mat Mat Hostile Shots Fired 81 | . 14 67 Missed 23 | . 3 20 Hits 58 | . 11 47 Projectile 58 | . 11 47 Damage Taken 643 | . 109 534 Core 106 | . 10 96 Absorbed by Shields . | . . . Core Remaining (%) 98 | 100 96 . Volleys Fired 30 | . 14 16 Largest 2 | . 2 2 Hottest 91 | . 50 91 Shots Fired 59 | . 28 31 Gun 41 | . 25 16 Cannon 11 | . . 11 Launcher 7 | . 3 4 Special . | . . . Kinetic 41 | . 25 16 Thermal 11 | . . 11 Explosive 7 | . 3 4 Electromagnetic . | . . . Robot Hit Streak 4 | . 4 4 Robot Miss Streak 3 | . 3 3 Penetration Max . | . . . Secondary Targets . | . . . Shots Hit Robots 27 | . 13 14 Core Hits 18 | . 12 6 Critical Kills . | . . . Critical Parts Destroyed . | . . . Critical Strikes . | . . . Melee Attacks . | . . . Impact . | . . . Slashing . | . . . Piercing . | . . . Sneak Attacks . | . . . Combat Hostiles . | . . . Follow-up Attacks . | . . . Damage Inflicted 515 | . 307 208 Guns 215 | . 109 106 Cannons 62 | . . 62 Explosions 238 | . 198 40 Melee . | . . . Ramming . | . . . Kinetic 215 | . 109 106 Thermal 87 | . 25 62 Explosive 213 | . 173 40 Electromagnetic . | . . . Impact . | . . . Slashing . | . . . Piercing . | . . . Highest Corruption . | . . . Average Corruption . | . . . Corruption Purged . | . . . Corruption Blocked . | . . . Overload Shots . | . . . Overflow Damage . | . . . Projectiles . | . . . Explosions . | . . . Melee . | . . . Knockbacks . | . . . Impact . | . . . Kinetic . | . . . Secondary . | . . . Self-Inflicted Damage 32 | . 8 24 Shots 2 | . 1 1 Rammed . | . . . Targets Rammed . | . . . Kicked . | . . . Crushed . | . . . Highest Temperature 172 | . 12 172 Average Temperature 42 | . 7 56 Received Heat Transfer 165 | . 36 129 Siege Activations . | . . . Martial Activations . | . . . Shielding Activations . | . . . Robots Disrupted . | . . . Combat Hostiles . | . . . Robots Corrupted . | . . . Combat Hostiles . | . . . Parts Fried . | . . . Impact Corruptions . | . . . Robots Melted . | . . . Combat Hostiles . | . . . Parts Melted . | . . . Heat Transferred 161 | . 50 111 Parts Sabotaged . | . . . Parts Stolen . | . . . Parts Stripped . | . . . Power Chain Reactions . | . . . Alert | -11 -10 -9 ------- Run | Yrd Mat Mat Maximum Alert Level . | . . . Low Security (%) 100 | 100 100 100 Level 1 . | . . . Level 2 . | . . . Level 3 . | . . . Level 4 . | . . . Level 5 . | . . . High Security . | . . . Max Security . | . . . Peak Influence 127 | . 127 47 Initial 15 | . . 15 Average 36 | . 58 16 Influence Increases 260 | . 144 116 Destroy 0b10 Robot/C 120 | . 80 40 Destroy 0b10 Robot/NC 20 | . 15 5 Destroy Leader 34 | . 22 12 Disable Machine 45 | . 15 30 Destroy Structure 41 | . 12 29 Influence Decreases 260 | . 107 153 Entered New Map 22 | . . 22 Time Decay 202 | . 107 95 Lost Part 36 | . . 36 Squads Dispatched 4 | . 2 2 Investigation 2 | . 1 1 Extermination . | . . . Reinforcement 2 | . 1 1 Assault . | . . . Garrison . | . . . Intercept . | . . . Searches Triggered . | . . . Construction Impeded . | . . . Haulers Reinforced . | . . . Active Scanning Responses . | . . . Cargo Convoy Interrupts . | . . . Stealth | -11 -10 -9 --------- Run | Yrd Mat Mat Distress Signals 2 | . 2 . Communications Jammed . | . . . Distress Signals . | . . . Times Spotted 16 | . 5 11 Peak Tracking Total 10 | . 3 10 Tactical Retreats . | . . . Traps | -11 -10 -9 ------- Run | Yrd Mat Mat Traps Triggered 1 | . . 1 Indirectly . | . . . Trap Hack Attempts . | . . . Triggered . | . . . Disarmed . | . . . Reprogrammed . | . . . Reused . | . . . Traps Extracted . | . . . Installed . | . . . Triggered . | . . . Machines | -11 -10 -9 ---------- Run | Yrd Mat Mat Machines Disabled 3 | . 1 2 Max in Single Turn 1 | . 1 1 Machines Repaired . | . . . Machines Dismantled . | . . . Machines Sabotaged . | . . . Overloaded Fab Kills . | . . . Hacking | -11 -10 -9 --------- Run | Yrd Mat Mat Machines Accessed 2 | . 2 . Terminals 1 | . 1 . Fabricators . | . . . Repair Stations . | . . . Recycling Units 1 | . 1 . Scanalyzers . | . . . Garrison Access . | . . . Total Hacks 12 | . 12 . Successful 12 | . 12 . Failed . | . . . Catastrophic . | . . . Database Lockouts . | . . . Manual . | . . . Terminals 3 | . 3 . Fabricators . | . . . Repair Stations . | . . . Recycling Units 9 | . 9 . Scanalyzers . | . . . Garrison Access . | . . . Terminal Hacks 3 | . 3 . Alert Level 1 | . 1 . Dispatch Records 1 | . 1 . Hauler Manifests 1 | . 1 . Fabricator Hacks . | . . . Repair Station Hacks . | . . . Recycling Unit Hacks 9 | . 9 . Recycle Component 6 | . 6 . Process 1 | . 1 . Report Inventory 1 | . 1 . Retrieve Matter 1 | . 1 . Scanalyzer . | . . . Garrison Access Hacks . | . . . Unauthorized Hacks . | . . . Terminals . | . . . Fabricators . | . . . Repair Stations . | . . . Recycling Units . | . . . Scanalyzers . | . . . Garrison Access . | . . . Data Cores Recovered . | . . . Used . | . . . Hacking Detections 2 | . 2 . Full Trace Events 1 | . 1 . Feedback Events . | . . . Feedback Blocked . | . . . Robot Schematics Acquired . | . . . Robots Built . | . . . Authchips . | . . . Time . | . . . Total Robot Build Rating . | . . . Part Schematics Acquired . | . . . Parts Built . | . . . Authchips . | . . . Time . | . . . Total Part Build Rating . | . . . Parts Repaired . | . . . Time . | . . . Parts Recycled 6 | . 6 . Recycled Matter 66 | . 66 . Retrieved Matter . | . . . Retrieved Components . | . . . Parts Scanalyzed . | . . . Part Schematics Acquired . | . . . Parts Damaged . | . . . Bothacking | -11 -10 -9 ------------ Run | Yrd Mat Mat Used RIF Installer . | . . . Robots Hacked . | . . . Non-combat . | . . . Combat . | . . . Robot Hacks Applied . | . . . Relay Couplers Released . | . . . Fabnet Peak Effective % . | . . . Robots Rewired . | . . . Allies Hacked . | . . . Hacks Repelled . | . . . Allies | -11 -10 -9 -------- Run | Yrd Mat Mat Total Allies . | . . . Largest Group . | . . . Highest-Rated Group . | . . . Highest-Rated Ally . | . . . Total Orders . | . . . Ally Attacks . | . . . Total Damage . | . . . Kills . | . . . Allies Corrupted . | . . . Allies Melted . | . . . Intel | -11 -10 -9 ------- Run | Yrd Mat Mat Active Infowar (turns) . | . . . Robot Analysis Total . | . . . Derelict Logs Recovered . | . . . Drone Launches . | . . . Drone Recoveries . | . . . Exploration | -11 -10 -9 ------------- Run | Yrd Mat Mat Turns Passed 570 | 64 294 212 Spaces Moved 350 | 48 180 122 Core 15 | 15 . . Treads . | . . . Legs 103 | 33 70 . Wheels 232 | . 110 122 Hover . | . . . Flight . | . . . Fastest Speed 50 | 50 120 123 Average Speed 124 | 101 129 126 Slowest Speed 400 | 120 400 130 Overloaded Moves . | . . . Propulsion Burnouts . | . . . Robots Hopped . | . . . Potential Cave-ins . | . . . Cave-ins Triggered . | . . . Exploration Rate (%) 17 | 4 31 17 Regions Visited 2 Branch Regions . Pre-discovered Areas . | . . . Known Exits Taken . | . . . Unknown Exits Taken 2 | 1 1 . Scrap Searched . | . . . Spaces Dug . | . . . Terrain Destroyed 41 | . 11 30 Melee . | . . . Projectile . | . . . AOE 41 | . 11 30 Terrain Rammed . | . . . Walls Destroyed . | . . . Machines Disabled . | . . . Actions | -11 -10 -9 --------- Run | Yrd Mat Mat Total 429 | 63 216 150 Wait . | . . . Move 348 | 47 179 122 Hop . | . . . Pick Up 30 | 8 14 8 Fast Attach 3 | 3 . . Attach 5 | 3 1 1 Detach . | . . . Swap 10 | 1 6 3 Drop 3 | 1 2 . Fire 30 | . 14 16 Melee . | . . . Ram . | . . . Kick . | . . . Crush . | . . . Escape Stasis . | . . . Rewire . | . . . Trap . | . . . Miscellaneous . | . . . Route ------- -11/Scrapyard -10/Materials -9/Materials History --------- Turn | Location | Event 2 | -11/Scrapyard | Met Revision 17 12 | -11/Scrapyard | Discovered new exit (range 16) 65 | -11/Scrapyard | Entered Materials 308 | -10/Materials | Build established: Mutant 350 | -10/Materials | Discovered new exit (range 5) 359 | -10/Materials | Entered another Materials area 359 | -9/Materials | Evolved 2 slots: Power x1, Propulsion x1 571 | -9/Materials | Self-destructed Last Messages --------------- 00477_ U-05 Engineer builds a Wall. 00513_ A-02 Transporter destroyed. 00514_ U-05 Engineer builds a Door. 00516_ Acquired 56 matter. 00519_ Acquired Shield Generator. 00535_ Acquired EM Shotgun. 00537_ Scanalyzer disabled. 00546_ O-16 Technician: "IFF HANDSHAKE FAILED. SECURING TERMINAL." 00548_ O-16 Technician uses terminal to summon reinforcements. 00548_ ALERT: Hostiles spotted, dispatching reinforcements to Terminal M011. 00548_ O-16 Technician locks terminal. 00552_ M-13 Machinist repairs G-34 Mercenary. 00555_ S-10 Pest destroyed. 00556_ G-34 Mercenary destroyed. 00556_ Ion Engine destroyed. 00559_ Electrolysis Chamber disabled. 00565_ Wheel destroyed. 00571_ Com. Wheel destroyed. 00571_ Autogun destroyed. Map ----- +----------------------------------------------------+ | ????????????????????????????????????? | | ????????????????????????????????????? | | ????????????????????????????????????? | | ????????????????????????????????????? | | ????????????????????????????????????? | | ????????????????????????????????????? | | ????????????????????????????????????? | | ????????????????????????????????????? | | ????????????????????????????????????? | | ??????????? ???????????????????????? | | ??????????? ???????????????????????? | | ?????????? "?? ?????????????????? | | ?????????? """ ???????????????? | | ??????????# "" #??????????????? | | ??????????# #??????????????? | | ??????????# #??????????????? | | ?????????"" [[ #??????????????? | | ?????????"T [ [] #??????????????? | | ??????????" #??????????????? | | ??????????# #??????????????? | | ??????????# s ####???????????? | | ??????????#*%= * ! +???????????? | | ???######?# os #??????????????? | | ???# """ # ????????????????? | | ???# "R" # m########??????????????? | | ???# " " ; @%Y! | #??????????????? | | ???# # [#= #??????????????? | | ???# # # "" #??????????????? | | ???# ?# # "" [#??????????????? | | ???######?# # "" #??????????????? | | ??????????# # #??????????????? | | ??????????# g###/####??????????????? | | ??????????#gg #?# #?????????????????? | | ?????????# ?# #?????????????????? | | ?????????# ## ### #?????????? | | ?????????# = / ???? | | ?????????# ! ## ### #?????????? | | ?????????# ##=#?????????????????? | | ?????????###+#### #?????????????????? | | ????????????????#=#?????????????????? | | ????????????????#!#?????????????????? | | ????????????????#!#?????????????????? | | ????????????????#!#?????????????????? | | ????????????????# #?????????????????? | | ????????????????# #?????????????????? | | ????????????????# #?????????????????? | | ????????#########+#?????????????????? | | ????????# #?????????????????? | | ????????# """ #?????????????????? | | ????????# """"" #?????????????????? | +----------------------------------------------------+ Best States ------------- Heat Dissipation 28 Energy Generation 10 Energy Capacity 350 Matter Stores 210 Matter Capacity 300 Sight Range 16 Terrain Scan Density 85 Evasion (%) 55 Item Schematics ----------------- None Robot Schematics ------------------ None Fabricated ------------ Nothing Repaired ---------- Nothing Alien Tech Used ----------------- None Achievements -------------- None Challenges ------------ None Game ------ Seed PiercingCobblerVibroblade Manual? 0 Play Time 00:14:11 Cumulative 8.1 hours Start 2025.08.03 @ 16:02:47 End 2025.08.03 @ 16:15:13 Sessions 1 Manual Loads 0 Difficulty Rogue Special Mode None Game No. 16 Rogue 16 Adventurer 0 Explorer 0 Win Type - Total 0 Types 0/0/0/0/0/0/0/0/0/0 Lore% 3 Gallery% 12 Achievement% 10 Wizard Run 0 Options --------- Layout 1 ASCII 0 Keyboard 0 Movement Mouse Keybinds 0 Fullscreen 1 Font 24/Smallcaps Map View 76x35 Zoom Use 0% Tactical HUD 1 Map Filters NONE Filters NONE Steam 1 RUN: 246d08a1-23a0-4473-86df-58bc129640d4